[Event "Early-Titled-Tuesday-Blitz-April-02-2024"]
[Site "Chess.com"]
[Date "2024.04.02"]
[Round "7"]
[White "Casper"]
[Black "mary-sanna"]
[Result "1-0"]
[WhiteElo "2500"]
[BlackElo "2232"]
[TimeControl "180+1"]
[EndTime "9:16:25 PDT"]
[Termination "Casper won by checkmate"]

1. e4 {[%clk 0:03:00.9]} 1... c5 {[%clk 0:03:00.3]} 2. Ne2 {[%clk 0:03:00.7]}
2... Nc6 {[%clk 0:02:59.5]} 3. d3 {[%clk 0:03:00.9]} 3... g6 {[%clk 0:02:55.3]}
4. g3 {[%clk 0:03:01.2]} 4... Bg7 {[%clk 0:02:55.5]} 5. Bg2 {[%clk 0:03:02.1]}
5... e6 {[%clk 0:02:55.9]} 6. O-O {[%clk 0:03:02.8]} 6... Nge7 {[%clk
0:02:55.9]} 7. Nbc3 {[%clk 0:03:03.4]} 7... O-O {[%clk 0:02:56]} 8. f4 {[%clk
0:03:01.9]} 8... d6 {[%clk 0:02:50.4]} 9. a4 {[%clk 0:03:01.3]} 9... Rb8 {[%clk
0:02:49.3]} 10. g4 {[%clk 0:03:01.4]} 10... f5 {[%clk 0:02:45.1]} 11. exf5
{[%clk 0:03:00.4]} 11... exf5 {[%clk 0:02:44.8]} 12. g5 {[%clk 0:02:56.7]} 12...
a6 {[%clk 0:02:39.4]} 13. Nd5 {[%clk 0:02:56.1]} 13... Be6 {[%clk 0:02:20.5]}
14. Nec3 {[%clk 0:02:52.3]} 14... Bf7 {[%clk 0:02:07.8]} 15. Re1 {[%clk
0:02:49.5]} 15... Re8 {[%clk 0:02:02.6]} 16. Nf6+ {[%clk 0:02:43.5]} 16... Bxf6
{[%clk 0:02:02.4]} 17. gxf6 {[%clk 0:02:44.4]} 17... Nc8 {[%clk 0:02:02]} 18.
Nd5 {[%clk 0:02:45.1]} 18... Nd4 {[%clk 0:01:35.4]} 19. Be3 {[%clk 0:02:11.6]}
19... Qa5 {[%clk 0:01:18.9]} 20. b4 {[%clk 0:01:55.9]} 20... Qd8 {[%clk
0:01:09.4]} 21. Bxd4 {[%clk 0:01:51.7]} 21... cxd4 {[%clk 0:01:10.3]} 22. a5
{[%clk 0:01:44]} 22... Kh8 {[%clk 0:01:09.9]} 23. Qf3 {[%clk 0:01:34.4]} 23...
Na7 {[%clk 0:00:55.8]} 24. Ne7 {[%clk 0:01:10]} 24... Nb5 {[%clk 0:00:41.8]} 25.
Qh3 {[%clk 0:01:09.8]} 25... Nc7 {[%clk 0:00:19.6]} 26. Qh6 {[%clk 0:01:07.4]}
26... Rg8 {[%clk 0:00:19.8]} 27. Nxg8 {[%clk 0:01:05.4]} 27... Qxg8 {[%clk
0:00:19.9]} 28. Re7 {[%clk 0:01:06.1]} 28... Nd5 {[%clk 0:00:18.6]} 29. Bxd5
{[%clk 0:01:06.2]} 29... Bxd5 {[%clk 0:00:18]} 30. Rg7 {[%clk 0:01:07.1]} 30...
Rf8 {[%clk 0:00:14.5]} 31. Re1 {[%clk 0:01:04.2]} 31... Rxf6 {[%clk 0:00:11.8]}
32. Re8 {[%clk 0:01:04.9]} 32... Rf8 {[%clk 0:00:12]} 33. Rxf8 {[%clk
0:01:04.7]} 33... Qxf8 {[%clk 0:00:09.5]} 34. Qxh7# {[%clk 0:01:05.3]} 1-0

[Event "Early-Titled-Tuesday-Blitz-April-02-2024"]
[Site "Chess.com"]
[Date "2024.04.02"]
[Round "7"]
[White "tk22h"]
[Black "Pragmatist237"]
[Result "1-0"]
[WhiteElo "2403"]
[BlackElo "2237"]
[TimeControl "180+1"]
[EndTime "9:16:25 PDT"]
[Termination "tk22h won by resignation"]

1. c4 {[%clk 0:02:59.7]} 1... e5 {[%clk 0:02:59.5]} 2. Nc3 {[%clk 0:02:59.2]}
2... Nf6 {[%clk 0:02:59.8]} 3. Nf3 {[%clk 0:02:59.3]} 3... Nc6 {[%clk
0:02:54.2]} 4. g3 {[%clk 0:02:58.9]} 4... Bb4 {[%clk 0:02:53.7]} 5. Bg2 {[%clk
0:02:57.9]} 5... O-O {[%clk 0:02:53.3]} 6. O-O {[%clk 0:02:57.7]} 6... e4 {[%clk
0:02:44.1]} 7. Ng5 {[%clk 0:02:52.8]} 7... Bxc3 {[%clk 0:02:44.2]} 8. bxc3
{[%clk 0:02:52.5]} 8... Qe7 {[%clk 0:02:43.7]} 9. Qc2 {[%clk 0:02:48.3]} 9...
Re8 {[%clk 0:02:42.7]} 10. d3 {[%clk 0:02:47.2]} 10... exd3 {[%clk 0:02:33.7]}
11. exd3 {[%clk 0:02:48.1]} 11... h6 {[%clk 0:02:33.3]} 12. Ne4 {[%clk
0:02:46.2]} 12... d6 {[%clk 0:02:30.6]} 13. Be3 {[%clk 0:02:42.1]} 13... Bf5
{[%clk 0:02:08.2]} 14. Nxf6+ {[%clk 0:02:41]} 14... Qxf6 {[%clk 0:02:08.3]} 15.
Rae1 {[%clk 0:02:39.9]} 15... Qg6 {[%clk 0:02:06.7]} 16. Qb3 {[%clk 0:02:33.3]}
16... Rab8 {[%clk 0:01:59.1]} 17. Bd2 {[%clk 0:02:25.1]} 17... Bxd3 {[%clk
0:01:52.4]} 18. Rxe8+ {[%clk 0:02:24]} 18... Rxe8 {[%clk 0:01:52.6]} 19. Qxb7
{[%clk 0:02:21.6]} 19... Nd8 {[%clk 0:01:31.1]} 20. Qxc7 {[%clk 0:02:10.6]}
20... Bxf1 {[%clk 0:01:30.7]} 21. Bxf1 {[%clk 0:02:10.8]} 21... Ne6 {[%clk
0:01:03.8]} 22. Qxa7 {[%clk 0:02:05]} 22... Nc5 {[%clk 0:00:54.7]} 23. Be3
{[%clk 0:01:53.2]} 23... Ne4 {[%clk 0:00:49]} 24. Qd4 {[%clk 0:01:43.1]} 24...
Qf6 {[%clk 0:00:37.1]} 25. Bd3 {[%clk 0:01:40.1]} 25... Nc5 {[%clk 0:00:30.4]}
26. Be2 {[%clk 0:01:34.9]} 26... Qxd4 {[%clk 0:00:30.1]} 27. cxd4 {[%clk
0:01:34.5]} 27... Na4 {[%clk 0:00:30.4]} 28. c5 {[%clk 0:01:28.5]} 28... dxc5
{[%clk 0:00:30]} 29. Bb5 {[%clk 0:01:26.3]} 29... Ra8 {[%clk 0:00:28.1]} 30.
dxc5 {[%clk 0:01:25.4]} 30... Nc3 {[%clk 0:00:28.4]} 31. Bc4 {[%clk 0:01:22.9]}
31... Rc8 {[%clk 0:00:27.1]} 32. Kf1 {[%clk 0:01:19.8]} 32... Ne4 {[%clk
0:00:27]} 33. Ba6 {[%clk 0:01:17.5]} 33... Rc7 {[%clk 0:00:27.3]} 34. Bb5 {[%clk
0:01:12.9]} 34... Nxc5 {[%clk 0:00:27.3]} 35. Ke2 {[%clk 0:01:11.7]} 35... Ne6
{[%clk 0:00:27]} 36. Kd3 {[%clk 0:01:09.7]} 36... Ra7 {[%clk 0:00:26.7]} 37.
Bxa7 {[%clk 0:01:09]} 37... Nc7 {[%clk 0:00:25.7]} 38. Bc4 {[%clk 0:01:08.3]}
38... Ne6 {[%clk 0:00:24.8]} 39. Bxe6 {[%clk 0:01:07.9]} 39... fxe6 {[%clk
0:00:25.4]} 40. Ke4 {[%clk 0:01:08.2]} 40... Kf8 {[%clk 0:00:26.3]} 41. Ke5
{[%clk 0:01:08.5]} 41... Kf7 {[%clk 0:00:27.2]} 42. Bc5 {[%clk 0:01:08.3]} 42...
g5 {[%clk 0:00:28.1]} 43. g4 {[%clk 0:01:08]} 43... h5 {[%clk 0:00:29]} 44. gxh5
{[%clk 0:01:07.3]} 1-0

[Event "Early-Titled-Tuesday-Blitz-April-02-2024"]
[Site "Chess.com"]
[Date "2024.04.02"]
[Round "7"]
[White "Zurability"]
[Black "Predo63"]
[Result "1-0"]
[WhiteElo "2693"]
[BlackElo "2529"]
[TimeControl "180+1"]
[EndTime "9:16:26 PDT"]
[Termination "Zurability won by resignation"]

1. e4 {[%clk 0:03:00.9]} 1... c6 {[%clk 0:02:59.7]} 2. Nf3 {[%clk 0:02:59.9]}
2... d5 {[%clk 0:03:00.6]} 3. d3 {[%clk 0:02:56.9]} 3... Nf6 {[%clk 0:02:59]} 4.
Nbd2 {[%clk 0:02:56.6]} 4... g6 {[%clk 0:02:56.7]} 5. g3 {[%clk 0:02:55.7]} 5...
Bg7 {[%clk 0:02:57]} 6. Bg2 {[%clk 0:02:56.4]} 6... Bg4 {[%clk 0:02:55.9]} 7.
O-O {[%clk 0:02:56.4]} 7... O-O {[%clk 0:02:54.9]} 8. h3 {[%clk 0:02:56.5]} 8...
Bxf3 {[%clk 0:02:54.6]} 9. Qxf3 {[%clk 0:02:57.4]} 9... e6 {[%clk 0:02:52.2]}
10. Qe2 {[%clk 0:02:57.9]} 10... Nbd7 {[%clk 0:02:51.4]} 11. f4 {[%clk
0:02:58.2]} 11... dxe4 {[%clk 0:02:50.9]} 12. dxe4 {[%clk 0:02:58.3]} 12... Qc7
{[%clk 0:02:47.1]} 13. e5 {[%clk 0:02:58]} 13... Nd5 {[%clk 0:02:46.7]} 14. Ne4
{[%clk 0:02:58.5]} 14... Rad8 {[%clk 0:02:41.1]} 15. c4 {[%clk 0:02:55.1]} 15...
Ne7 {[%clk 0:02:39.9]} 16. g4 {[%clk 0:02:55.2]} 16... c5 {[%clk 0:02:39.2]} 17.
Be3 {[%clk 0:02:51.7]} 17... b6 {[%clk 0:02:39.1]} 18. Bf2 {[%clk 0:02:47.8]}
18... Nb8 {[%clk 0:02:34.2]} 19. Bh4 {[%clk 0:02:44.6]} 19... Nbc6 {[%clk
0:02:33.3]} 20. Bf6 {[%clk 0:02:34.9]} 20... Rd4 {[%clk 0:02:30.1]} 21. Qf2
{[%clk 0:02:29.1]} 21... Rfd8 {[%clk 0:02:24.5]} 22. Qh4 {[%clk 0:02:27.8]}
22... Rxe4 {[%clk 0:02:21.2]} 23. Bxe4 {[%clk 0:02:27.6]} 23... Rd4 {[%clk
0:02:19.7]} 24. Bg2 {[%clk 0:02:23.5]} 24... Rxc4 {[%clk 0:02:19.2]} 25. Rad1
{[%clk 0:02:23]} 25... Rd4 {[%clk 0:02:19.1]} 26. Rxd4 {[%clk 0:02:04.1]} 26...
cxd4 {[%clk 0:02:18.9]} 27. Rc1 {[%clk 0:01:59.8]} 27... Qd7 {[%clk 0:02:18.6]}
28. Qf2 {[%clk 0:01:43.6]} 28... Nd5 {[%clk 0:02:15.2]} 29. Bxg7 {[%clk
0:01:39.2]} 29... Kxg7 {[%clk 0:02:13.7]} 30. f5 {[%clk 0:01:37.6]} 30... Ndb4
{[%clk 0:01:33.6]} 31. fxe6 {[%clk 0:01:25.7]} 31... fxe6 {[%clk 0:01:32.3]} 32.
Qf6+ {[%clk 0:01:09.9]} 32... Kg8 {[%clk 0:01:31]} 33. Rf1 {[%clk 0:01:09.5]}
33... Qe8 {[%clk 0:01:29.3]} 34. a3 {[%clk 0:01:05.3]} 34... Nd5 {[%clk
0:01:27.4]} 35. Bxd5 {[%clk 0:01:04.3]} 35... exd5 {[%clk 0:01:27.6]} 36. e6
{[%clk 0:01:03.8]} 36... d3 {[%clk 0:01:23.4]} 37. Rf2 {[%clk 0:01:00.9]} 37...
Qe7 {[%clk 0:01:20.3]} 38. Qxe7 {[%clk 0:00:54]} 38... Nxe7 {[%clk 0:01:19.6]}
39. Kf1 {[%clk 0:00:54.4]} 39... Nc6 {[%clk 0:01:16.1]} 40. Ke1 {[%clk 0:00:54]}
40... Kg7 {[%clk 0:01:04.8]} 41. Kd2 {[%clk 0:00:53.9]} 41... g5 {[%clk
0:01:05.4]} 42. Kxd3 {[%clk 0:00:53.3]} 42... a5 {[%clk 0:01:05.7]} 43. Rf5
{[%clk 0:00:47.7]} 43... h6 {[%clk 0:01:04.6]} 44. Rxd5 {[%clk 0:00:41.4]} 44...
Kf6 {[%clk 0:01:04.4]} 45. Rd6 {[%clk 0:00:41.7]} 45... Ne5+ {[%clk 0:01:02.6]}
46. Kd4 {[%clk 0:00:37.6]} 46... b5 {[%clk 0:01:02.7]} 47. e7+ {[%clk
0:00:37.4]} 1-0

[Event "Early-Titled-Tuesday-Blitz-April-02-2024"]
[Site "Chess.com"]
[Date "2024.04.02"]
[Round "7"]
[White "cakeuvdort"]
[Black "Rutricks"]
[Result "0-1"]
[WhiteElo "2376"]
[BlackElo "2713"]
[TimeControl "180+1"]
[EndTime "9:16:27 PDT"]
[Termination "Rutricks won by resignation"]

1. Nf3 {[%clk 0:02:52.9]} 1... g6 {[%clk 0:03:00.1]} 2. e3 {[%clk 0:02:53.8]}
2... Bg7 {[%clk 0:03:00.7]} 3. d4 {[%clk 0:02:53.5]} 3... d6 {[%clk 0:03:01.4]}
4. b3 {[%clk 0:02:53.8]} 4... Nd7 {[%clk 0:03:02.1]} 5. Bb2 {[%clk 0:02:54.2]}
5... Ngf6 {[%clk 0:03:02.8]} 6. Be2 {[%clk 0:02:54.4]} 6... O-O {[%clk
0:03:03.6]} 7. O-O {[%clk 0:02:54.8]} 7... Re8 {[%clk 0:03:04.4]} 8. c4 {[%clk
0:02:54.3]} 8... h5 {[%clk 0:03:00]} 9. Nc3 {[%clk 0:02:52.9]} 9... e5 {[%clk
0:03:00.2]} 10. dxe5 {[%clk 0:02:52.7]} 10... dxe5 {[%clk 0:03:01.1]} 11. Qc2
{[%clk 0:02:42.1]} 11... e4 {[%clk 0:02:59.4]} 12. Ng5 {[%clk 0:02:40.4]} 12...
Qe7 {[%clk 0:02:55]} 13. Rad1 {[%clk 0:02:36]} 13... Nf8 {[%clk 0:02:40.8]} 14.
Nb5 {[%clk 0:01:45.8]} 14... a6 {[%clk 0:02:40]} 15. Ba3 {[%clk 0:01:43.7]}
15... Qe5 {[%clk 0:02:40.2]} 16. Bb2 {[%clk 0:01:26.3]} 16... Qxg5 {[%clk
0:02:39.7]} 17. Nxc7 {[%clk 0:01:26.7]} 17... Bh3 {[%clk 0:02:40]} 18. g3 {[%clk
0:01:17.3]} 18... Bxf1 {[%clk 0:02:35.9]} 19. Bxf1 {[%clk 0:01:18]} 19... Rac8
{[%clk 0:02:30.5]} 20. Nxe8 {[%clk 0:01:16.8]} 20... Rxe8 {[%clk 0:02:31.4]} 21.
h4 {[%clk 0:01:10.3]} 21... Qf5 {[%clk 0:02:31.5]} 22. Bg2 {[%clk 0:01:05.9]}
22... Ng4 {[%clk 0:02:31.5]} 23. Rd5 {[%clk 0:01:05]} 23... Qe6 {[%clk
0:02:26.6]} 24. Bxg7 {[%clk 0:01:04]} 24... Kxg7 {[%clk 0:02:27.5]} 25. Rd4
{[%clk 0:01:00]} 25... Nf6 {[%clk 0:02:23.6]} 26. Qc3 {[%clk 0:00:59.1]} 26...
Qe5 {[%clk 0:02:21.6]} 27. Qd2 {[%clk 0:00:57.1]} 27... Ne6 {[%clk 0:02:21.5]}
28. Rd6 {[%clk 0:00:48.4]} 28... Nc5 {[%clk 0:02:13.8]} 29. Bh3 {[%clk
0:00:31.8]} 29... Qa1+ {[%clk 0:02:00.6]} 30. Kg2 {[%clk 0:00:31.8]} 30... Nd3
{[%clk 0:01:59]} 31. Kh2 {[%clk 0:00:07.6]} 31... Ne1 {[%clk 0:01:55.4]} 32. Qd1
{[%clk 0:00:08]} 32... Nf3+ {[%clk 0:01:52.7]} 33. Kg2 {[%clk 0:00:08.1]} 33...
Qxa2 {[%clk 0:01:37]} 34. Rb6 {[%clk 0:00:08.3]} 34... Qa5 {[%clk 0:01:33.3]}
35. Qd6 {[%clk 0:00:08.1]} 35... Qe1 {[%clk 0:01:11.6]} 36. Qxf6+ {[%clk
0:00:07.8]} 36... Kg8 {[%clk 0:01:12.4]} 0-1

[Event "Early-Titled-Tuesday-Blitz-April-02-2024"]
[Site "Chess.com"]
[Date "2024.04.02"]
[Round "7"]
[White "GolfBeforeChess"]
[Black "Slovineanu"]
[Result "1-0"]
[WhiteElo "2323"]
[BlackElo "2456"]
[TimeControl "180+1"]
[EndTime "9:16:27 PDT"]
[Termination "GolfBeforeChess won by resignation"]

1. Nf3 {[%clk 0:03:00.9]} 1... Nf6 {[%clk 0:02:59.5]} 2. c4 {[%clk 0:03:00.8]}
2... e6 {[%clk 0:02:59.2]} 3. g3 {[%clk 0:03:00.7]} 3... d5 {[%clk 0:02:59.2]}
4. b3 {[%clk 0:03:01.1]} 4... c5 {[%clk 0:02:56.4]} 5. cxd5 {[%clk 0:03:00.6]}
5... exd5 {[%clk 0:02:56.2]} 6. d4 {[%clk 0:03:01.2]} 6... Nc6 {[%clk
0:02:55.1]} 7. Bg2 {[%clk 0:03:01.2]} 7... cxd4 {[%clk 0:02:39.4]} 8. Nxd4
{[%clk 0:02:58.6]} 8... Bb4+ {[%clk 0:02:38]} 9. Bd2 {[%clk 0:02:46.4]} 9... Qa5
{[%clk 0:02:37.6]} 10. Nxc6 {[%clk 0:02:44]} 10... bxc6 {[%clk 0:02:37.2]} 11.
O-O {[%clk 0:02:42.6]} 11... O-O {[%clk 0:02:36.4]} 12. Bxb4 {[%clk 0:02:35.4]}
12... Qxb4 {[%clk 0:02:35.9]} 13. Qc2 {[%clk 0:02:35.7]} 13... Bg4 {[%clk
0:02:22.9]} 14. Nc3 {[%clk 0:02:23]} 14... Rfe8 {[%clk 0:02:08.5]} 15. Rfe1
{[%clk 0:02:22.6]} 15... Rad8 {[%clk 0:01:53.8]} 16. e3 {[%clk 0:02:16.1]} 16...
c5 {[%clk 0:01:42.8]} 17. Na4 {[%clk 0:02:08.7]} 17... c4 {[%clk 0:01:41.4]} 18.
Rac1 {[%clk 0:02:04.4]} 18... cxb3 {[%clk 0:01:14.5]} 19. Qxb3 {[%clk
0:02:01.5]} 19... Qxb3 {[%clk 0:01:14.6]} 20. axb3 {[%clk 0:02:01.2]} 20... Rb8
{[%clk 0:01:03.5]} 21. Nc5 {[%clk 0:01:56.6]} 21... Rb5 {[%clk 0:00:58.7]} 22.
Bf1 {[%clk 0:01:52.5]} 22... Rb4 {[%clk 0:00:55]} 23. Ra1 {[%clk 0:01:48.4]}
23... Re7 {[%clk 0:00:48.8]} 24. Ra5 {[%clk 0:01:38.5]} 24... h5 {[%clk
0:00:31.8]} 25. Rea1 {[%clk 0:01:34.7]} 25... Ne4 {[%clk 0:00:19.3]} 26. Nxe4
{[%clk 0:01:31.9]} 26... Rexe4 {[%clk 0:00:18.5]} 27. Rxd5 {[%clk 0:01:26.5]}
27... Rxb3 {[%clk 0:00:15.8]} 28. Rd8+ {[%clk 0:01:26.3]} 28... Kh7 {[%clk
0:00:15.7]} 29. Bd3 {[%clk 0:01:26.4]} 29... Rxd3 {[%clk 0:00:15.6]} 30. Rxd3
{[%clk 0:01:26]} 30... Bf3 {[%clk 0:00:13.8]} 31. Rd4 {[%clk 0:01:23.7]} 31...
Re7 {[%clk 0:00:11.5]} 32. Rf4 {[%clk 0:01:23.6]} 32... Bd5 {[%clk 0:00:09.7]}
33. h3 {[%clk 0:01:14.9]} 33... g5 {[%clk 0:00:09.3]} 34. Rf5 {[%clk 0:01:14.6]}
34... Be6 {[%clk 0:00:06.5]} 35. Rxg5 {[%clk 0:01:13.6]} 35... Kh6 {[%clk
0:00:07.1]} 36. h4 {[%clk 0:01:13.2]} 36... Rc7 {[%clk 0:00:05.7]} 37. Kg2
{[%clk 0:01:12.6]} 37... f6 {[%clk 0:00:04.6]} 38. Rga5 {[%clk 0:01:11.4]} 1-0

[Event "Early-Titled-Tuesday-Blitz-April-02-2024"]
[Site "Chess.com"]
[Date "2024.04.02"]
[Round "7"]
[White "TigrVShlyape"]
[Black "only_strong_moves"]
[Result "1-0"]
[WhiteElo "2915"]
[BlackElo "2742"]
[TimeControl "180+1"]
[EndTime "9:16:28 PDT"]
[Termination "TigrVShlyape won by resignation"]

1. d4 {[%clk 0:03:00.9]} 1... Nf6 {[%clk 0:02:59.5]} 2. Bf4 {[%clk 0:03:00.5]}
2... e6 {[%clk 0:02:59.4]} 3. e3 {[%clk 0:03:00.9]} 3... d5 {[%clk 0:03:00]} 4.
Nf3 {[%clk 0:03:00.1]} 4... c5 {[%clk 0:03:00.7]} 5. c3 {[%clk 0:02:59.6]} 5...
Nc6 {[%clk 0:03:01.2]} 6. Nbd2 {[%clk 0:02:59.2]} 6... Nh5 {[%clk 0:03:01.8]} 7.
Bg5 {[%clk 0:02:58.7]} 7... f6 {[%clk 0:03:02.4]} 8. Bh4 {[%clk 0:02:55.9]} 8...
g6 {[%clk 0:03:03.1]} 9. Bd3 {[%clk 0:02:49.7]} 9... cxd4 {[%clk 0:03:02.6]} 10.
cxd4 {[%clk 0:02:45.5]} 10... Bd6 {[%clk 0:03:03]} 11. a3 {[%clk 0:02:44.1]}
11... O-O {[%clk 0:03:02.8]} 12. O-O {[%clk 0:02:42.1]} 12... Bd7 {[%clk
0:03:01.9]} 13. Rc1 {[%clk 0:02:41.6]} 13... Rc8 {[%clk 0:03:01.8]} 14. b4
{[%clk 0:02:39.6]} 14... Rc7 {[%clk 0:02:46.7]} 15. Nb3 {[%clk 0:02:34.7]} 15...
b6 {[%clk 0:02:46.5]} 16. Qe2 {[%clk 0:02:26.7]} 16... a5 {[%clk 0:02:28.9]} 17.
bxa5 {[%clk 0:01:59]} 17... Nxa5 {[%clk 0:02:27]} 18. Nxa5 {[%clk 0:01:57.6]}
18... bxa5 {[%clk 0:02:26.7]} 19. Qa2 {[%clk 0:01:36.8]} 19... Kg7 {[%clk
0:02:10.4]} 20. a4 {[%clk 0:01:34.9]} 20... Rb7 {[%clk 0:01:44.7]} 21. g4 {[%clk
0:01:32.9]} 21... g5 {[%clk 0:01:44.7]} 22. gxh5 {[%clk 0:01:33]} 22... gxh4
{[%clk 0:01:44.8]} 23. Kh1 {[%clk 0:01:33.1]} 23... Be8 {[%clk 0:01:30.4]} 24.
Rg1+ {[%clk 0:01:31.8]} 24... Kh8 {[%clk 0:01:30.7]} 25. h6 {[%clk 0:01:27.1]}
25... f5 {[%clk 0:01:30.7]} 26. Ng5 {[%clk 0:01:23]} 26... Bh5 {[%clk
0:01:21.7]} 27. Be2 {[%clk 0:01:18]} 27... Bxe2 {[%clk 0:00:29.7]} 28. Qxe2
{[%clk 0:01:17.2]} 28... Qf6 {[%clk 0:00:30.3]} 29. Qa6 {[%clk 0:01:14.9]} 29...
Rd7 {[%clk 0:00:18.7]} 30. Rc8 {[%clk 0:01:14.7]} 30... Rdd8 {[%clk 0:00:08.1]}
31. Qb7 {[%clk 0:01:07.2]} 31... Qg6 {[%clk 0:00:02.7]} 32. Qg7+ {[%clk
0:01:04.6]} 32... Qxg7 {[%clk 0:00:02.3]} 33. hxg7+ {[%clk 0:01:05]} 33... Kxg7
{[%clk 0:00:03.1]} 34. Nxe6+ {[%clk 0:01:05.3]} 1-0

[Event "Early-Titled-Tuesday-Blitz-April-02-2024"]
[Site "Chess.com"]
[Date "2024.04.02"]
[Round "7"]
[White "arnash_bauyrzhan"]
[Black "Shuvalov"]
[Result "0-1"]
[WhiteElo "2348"]
[BlackElo "2588"]
[TimeControl "180+1"]
[EndTime "9:16:29 PDT"]
[Termination "Shuvalov won by resignation"]

1. e4 {[%clk 0:03:00.9]} 1... e6 {[%clk 0:02:43.8]} 2. d4 {[%clk 0:02:59.8]}
2... d5 {[%clk 0:02:43.6]} 3. Nd2 {[%clk 0:03:00]} 3... c5 {[%clk 0:02:43.1]} 4.
Ngf3 {[%clk 0:02:59.2]} 4... Nc6 {[%clk 0:02:43]} 5. exd5 {[%clk 0:02:58.4]}
5... exd5 {[%clk 0:02:43.2]} 6. Bb5 {[%clk 0:02:58.4]} 6... Qe7+ {[%clk
0:02:42.6]} 7. Qe2 {[%clk 0:02:56.3]} 7... Qxe2+ {[%clk 0:02:42.4]} 8. Kxe2
{[%clk 0:02:55.8]} 8... a6 {[%clk 0:02:42.4]} 9. Bxc6+ {[%clk 0:02:54.6]} 9...
bxc6 {[%clk 0:02:43.3]} 10. dxc5 {[%clk 0:02:54.2]} 10... Bxc5 {[%clk
0:02:44.2]} 11. Nb3 {[%clk 0:02:54.4]} 11... Bd6 {[%clk 0:02:44]} 12. Re1 {[%clk
0:02:49.4]} 12... f6 {[%clk 0:02:42.1]} 13. Kf1+ {[%clk 0:02:48.2]} 13... Kf7
{[%clk 0:02:41.7]} 14. Be3 {[%clk 0:02:42.6]} 14... Bg4 {[%clk 0:02:41.3]} 15.
Nc5 {[%clk 0:01:52.5]} 15... Bxf3 {[%clk 0:02:29]} 16. gxf3 {[%clk 0:01:52.8]}
16... Ne7 {[%clk 0:02:27.3]} 17. Kg2 {[%clk 0:01:48]} 17... Nf5 {[%clk
0:02:25.4]} 18. Nd3 {[%clk 0:01:45.5]} 18... Nxe3+ {[%clk 0:02:20.9]} 19. fxe3
{[%clk 0:01:44.6]} 19... Rhe8 {[%clk 0:02:20.2]} 20. e4 {[%clk 0:01:43.5]} 20...
dxe4 {[%clk 0:02:17.9]} 21. Rxe4 {[%clk 0:01:42.9]} 21... Rxe4 {[%clk
0:02:17.9]} 22. fxe4 {[%clk 0:01:43.3]} 22... Re8 {[%clk 0:02:18.1]} 23. Re1
{[%clk 0:01:41.1]} 23... g5 {[%clk 0:02:16.9]} 24. c4 {[%clk 0:01:34.2]} 24...
a5 {[%clk 0:01:55]} 25. c5 {[%clk 0:01:33.7]} 25... Bc7 {[%clk 0:01:53.2]} 26.
b4 {[%clk 0:01:29.3]} 26... Rd8 {[%clk 0:01:47.3]} 27. Re3 {[%clk 0:01:22.3]}
27... Rd4 {[%clk 0:01:36.2]} 28. bxa5 {[%clk 0:01:18.4]} 28... Bxa5 {[%clk
0:01:37.1]} 29. e5 {[%clk 0:01:17.3]} 29... Ra4 {[%clk 0:01:20.7]} 30. Re2
{[%clk 0:00:49.6]} 30... Ra3 {[%clk 0:01:18.5]} 31. e6+ {[%clk 0:00:39.6]} 31...
Ke7 {[%clk 0:01:17.9]} 32. Nf2 {[%clk 0:00:39.5]} 32... f5 {[%clk 0:01:13.5]}
33. Nh3 {[%clk 0:00:32.8]} 33... h6 {[%clk 0:01:13]} 34. Ng1 {[%clk 0:00:33]}
34... g4 {[%clk 0:01:09.3]} 35. h3 {[%clk 0:00:31.6]} 35... h5 {[%clk
0:01:08.9]} 36. hxg4 {[%clk 0:00:31.1]} 36... hxg4 {[%clk 0:01:09.2]} 37. Re5
{[%clk 0:00:21.6]} 37... Rxa2+ {[%clk 0:01:06.4]} 38. Kg3 {[%clk 0:00:21]} 38...
Bc7 {[%clk 0:01:03.9]} 0-1

[Event "Early-Titled-Tuesday-Blitz-April-02-2024"]
[Site "Chess.com"]
[Date "2024.04.02"]
[Round "7"]
[White "NastyaHn"]
[Black "ninguno46"]
[Result "1-0"]
[WhiteElo "2465"]
[BlackElo "2566"]
[TimeControl "180+1"]
[EndTime "9:16:31 PDT"]
[Termination "NastyaHn won on time"]

1. Nc3 {[%clk 0:03:00.9]} 1... c5 {[%clk 0:02:58.7]} 2. Nf3 {[%clk 0:03:00.5]}
2... g6 {[%clk 0:02:57.5]} 3. d4 {[%clk 0:03:00.3]} 3... cxd4 {[%clk 0:02:56.9]}
4. Nxd4 {[%clk 0:03:00.3]} 4... Bg7 {[%clk 0:02:56.3]} 5. h4 {[%clk 0:02:53]}
5... h6 {[%clk 0:02:52.7]} 6. e4 {[%clk 0:02:39.2]} 6... Nc6 {[%clk 0:02:50.3]}
7. Be3 {[%clk 0:02:36.1]} 7... d6 {[%clk 0:02:48.8]} 8. f3 {[%clk 0:02:33.9]}
8... Nf6 {[%clk 0:02:47.5]} 9. Qd2 {[%clk 0:02:33.6]} 9... Bd7 {[%clk
0:02:45.6]} 10. O-O-O {[%clk 0:02:33]} 10... Qa5 {[%clk 0:02:42.4]} 11. Kb1
{[%clk 0:02:30.3]} 11... Rc8 {[%clk 0:02:41.5]} 12. g4 {[%clk 0:02:22.9]} 12...
Ne5 {[%clk 0:02:38.9]} 13. Be2 {[%clk 0:02:12.1]} 13... Rxc3 {[%clk 0:01:52.7]}
14. Qxc3 {[%clk 0:02:07.1]} 14... Qxc3 {[%clk 0:01:51.9]} 15. bxc3 {[%clk
0:02:07]} 15... Ba4 {[%clk 0:01:44.3]} 16. g5 {[%clk 0:01:43.2]} 16... Nfd7
{[%clk 0:01:29.9]} 17. gxh6 {[%clk 0:01:32.3]} 17... Bxh6 {[%clk 0:01:25.4]} 18.
Bxh6 {[%clk 0:01:32.3]} 18... Rxh6 {[%clk 0:01:24.7]} 19. f4 {[%clk 0:01:31.9]}
19... Nc6 {[%clk 0:01:22.8]} 20. h5 {[%clk 0:01:31.6]} 20... gxh5 {[%clk
0:01:16.5]} 21. Bxh5 {[%clk 0:01:24.9]} 21... Kf8 {[%clk 0:01:10.9]} 22. Nf5
{[%clk 0:01:08.7]} 22... Rh7 {[%clk 0:00:53.6]} 23. Bg4 {[%clk 0:00:50.8]} 23...
Rxh1 {[%clk 0:00:44.9]} 24. Rxh1 {[%clk 0:00:49.8]} 24... Kg8 {[%clk 0:00:44.3]}
25. Nh6+ {[%clk 0:00:48.7]} 25... Kf8 {[%clk 0:00:42.2]} 26. Bxd7 {[%clk
0:00:48.6]} 1-0